bitfinex/quotes_SOLUSD_20240703
["timestamp","ask_amount","ask_price","bid_price","bid_amount"]
[1719973699840,6.5503,152.67,152.57,0.17]
[1719973700454,6.5503,152.67,152.57,20.17]
[1719973700759,27.39735212,152.71,152.58,0.17]
[1719973700960,23.13,152.69,152.58,0.17]
[1719973701756,6.5496,152.68,152.58,0.17]
[1719973701957,29.6793,152.69,152.58,0.17]
[1719973702345,6.5497,152.68,152.58,0.17]
[1719973704945,23.13,152.69,152.58,0.17]
[1719973705133,33.11301717,152.7,152.58,0.17]
[1719973706262,13.39301717,152.7,152.58,0.17]
[1719973706660,6.84391717,152.7,152.6,6.04]
[1719973706858,6.84391717,152.7,152.61,0.34]
[1719973707258,6.84391717,152.7,152.64,6.04]
[1719973707451,0.8273919,152.71,152.65,0.34]
[1719973713849,0.8273919,152.71,152.66,11.56]
[1719973714059,11.56,152.7,152.67,0.34]
[1719973714278,11.56,152.7,152.68,0.17]
[1719973714567,12.3873919,152.71,152.65,11.9]
[1719973715349,11.56,152.7,152.65,11.9]
[1719973715563,0.8273919,152.71,152.65,0.34]
[1719973715875,11.56,152.66,152.62,15.1758]
[1719973716051,11.56,152.63,152.62,15.1758]
[1719973716259,11.56,152.63,152.58,21.3726]
[1719973716479,11.56,152.62,152.58,21.3726]
[1719973716668,11.56,152.61,152.58,21.3726]
[1719973717856,49.4101,152.67,152.58,21.3726]
[1719973718260,6.5505,152.66,152.58,21.3726]
[1719973718567,49.4101,152.67,152.58,21.3726]
[1719973719779,49.4101,152.67,152.59,0.34]
[1719973720067,6.83701016,152.69,152.51,15.5367]
[1719973720068,19.72,152.63,152.51,15.5367]
[1719973720371,6.5522,152.62,152.51,15.5367]
[1719973720953,23.14,152.61,152.51,15.5367]
[1719973721274,6.5534,152.6,152.51,15.5367]
[1719973722173,23.14,152.61,152.51,15.5367]
[1719973723175,29.6927,152.61,152.51,15.5367]
[1719973723344,29.6927,152.61,152.52,0.34]
[1719973726271,23.14,152.61,152.52,0.34]
[1719973727365,29.6927,152.61,152.52,0.34]
[1719973728178,23.14,152.61,152.52,0.34]
[1719973729268,6.83339693,152.63,152.52,20.34]
[1719973729467,23.14,152.64,152.52,20.34]
[1719973729667,29.6917,152.64,152.52,20.34]
[1719973730387,6.83195897,152.64,152.52,20.34]
[1719973730761,29.6911,152.65,152.52,20.34]
[1719973730966,29.6911,152.65,152.53,22.303]
[1719973731169,29.6911,152.65,152.54,20.34]
[1719973731375,6.5514,152.64,152.54,20.34]
[1719973731883,36.52580089,152.65,152.54,20.34]
[1719973732055,29.691,152.65,152.54,20.34]
[1719973732678,36.53279264,152.65,152.54,20.34]
[1719973733259,6.5514,152.64,152.54,20.34]
[1719973733460,6.5518,152.63,152.54,20.34]
[1719973733676,29.6922,152.62,152.54,0.34]
[1719973734079,29.6922,152.62,152.53,22.303]
[1719973734677,23.14,152.62,152.53,22.303]
[1719973735271,23.14,152.62,152.54,0.17]
[1719973736584,23.14,152.62,152.53,22.303]
[1719973736585,19.72,152.61,152.53,22.303]
[1719973736781,29.6922,152.62,152.53,22.303]
[1719973736782,6.5534,152.6,152.53,22.303]
[1719973737185,6.5527,152.61,152.53,22.303]
[1719973737681,29.6923,152.62,152.53,22.303]
[1719973737882,11.58,152.57,152.53,22.303]
[1719973738179,11.58,152.56,152.53,22.303]
[1719973739257,11.58,152.56,152.54,0.34]
[1719973739788,11.58,152.57,152.54,0.34]
[1719973740878,11.58,152.55,152.54,0.34]
[1719973741080,6.5526,152.61,152.54,0.34]
[1719973741294,11.58,152.57,152.54,0.34]
[1719973741595,11.58,152.56,152.54,0.34]
[1719973742669,6.5518,152.63,152.54,0.34]
[1719973742870,6.83519455,152.62,152.54,0.34]
[1719973743087,11.58,152.59,152.54,0.34]
[1719973743266,6.83519455,152.62,152.55,11.58]
[1719973743468,22.0771,152.66,152.56,11.92]
[1719973743780,11.58,152.61,152.57,0.34]
[1719973745286,6.5505,152.66,152.57,0.34]
[1719973745489,11.58,152.6,152.57,0.34]
[1719973745695,11.58,152.59,152.57,0.34]
[1719973746268,46.32,152.64,152.57,0.34]
[1719973746487,11.58,152.6,152.56,0.34]
[1719973746899,11.58,152.59,152.56,0.34]
[1719973747069,11.58,152.59,152.55,0.34]
[1719973747863,11.58,152.57,152.55,0.34]
[1719973748067,11.58,152.57,152.54,0.34]
[1719973750276,11.58,152.57,152.53,22.303]
[1719973751195,11.58,152.54,152.49,5.30657807]
[1719973751387,11.58,152.53,152.48,26.8156]
[1719973751892,0.17,152.63,152.49,11.58]
[1719973751893,6.5531,152.6,152.49,11.58]
[1719973752090,11.58,152.54,152.49,11.58]
[1719973752492,6.5524,152.62,152.52,11.58]
[1719973752798,6.5519,152.63,152.53,11.92]
[1719973753105,11.58,152.58,152.53,11.92]
[1719973753898,6.5522,152.62,152.53,0.34]
[1719973755387,23.15,152.63,152.53,0.34]
[1719973756184,23.15,152.63,152.54,16.2334]
[1719973756185,6.5523,152.62,152.54,16.2334]
[1719973756401,6.5523,152.62,152.55,0.34]
[1719973756602,29.7019,152.63,152.55,0.34]
[1719973756801,6.5523,152.62,152.55,0.34]
[1719973757301,6.5523,152.62,152.55,6.9214]
[1719973760406,6.83317331,152.64,152.55,6.9214]
[1719973760604,29.7003,152.67,152.55,6.9214]
[1719973761101,6.5505,152.66,152.55,6.9214]
[1719973763604,6.551,152.65,152.55,6.9214]
[1719973766411,6.5518,152.63,152.55,6.9214]
[1719973766585,23.15,152.64,152.55,6.9214]
[1719973766990,6.5522,152.62,152.55,6.9214]
[1719973767593,6.5527,152.61,152.55,6.9214]
[1719973767892,6.5522,152.62,152.55,6.9214]
[1719973768292,29.7017,152.64,152.55,6.9214]
[1719973768594,23.15,152.64,152.55,6.9214]
[1719973769709,6.551,152.65,152.55,6.9214]
[1719973770507,23.15,152.67,152.55,6.9214]
[1719973770706,6.5503,152.67,152.57,16.2406]
[1719973771006,6.5497,152.68,152.59,6.4213]
[1719973771219,6.5492,152.69,152.6,0.34]
[1719973771894,6.5489,152.7,152.6,0.34]
[1719973772098,6.5489,152.7,152.61,16.2406]
[1719973772300,6.5489,152.7,152.62,0.34]
[1719973773210,6.5493,152.69,152.62,0.34]
[1719973773619,6.5493,152.69,152.62,1.10387183]
[1719973774495,6.5496,152.68,152.62,0.34]
[1719973774909,6.5502,152.67,152.62,0.34]
[1719973775413,42.87,152.69,152.61,16.2406]
[1719973776017,6.5512,152.65,152.61,16.2406]
[1719973776214,6.5514,152.64,152.59,6.4213]
[1719973776810,42.87,152.66,152.59,6.4213]
[1719973777328,6.5514,152.64,152.59,6.4213]
[1719973779424,6.551,152.65,152.59,6.4213]
[1719973781303,6.5513,152.64,152.59,6.4213]
[1719973781998,6.551,152.65,152.59,6.4213]
[1719973783531,56.25799416,152.66,152.59,6.4213]
[1719973785724,11.57,152.6,152.59,6.4213]
[1719973787329,11.57,152.6,152.57,16.4466]
[1719973787525,11.57,152.58,152.54,6.0823]
[1719973787728,11.57,152.55,152.54,6.0823]
[1719973788430,11.57,152.56,152.54,6.0823]
[1719973788729,19.72,152.65,152.54,6.0823]
[1719973788909,11.57,152.56,152.54,6.0823]
[1719973789530,72.5514,152.64,152.54,17.6523]
[1719973789826,49.4214,152.64,152.55,0.34]
[1719973791023,6.5519,152.63,152.55,0.34]
[1719973791826,49.4214,152.64,152.55,0.34]
[1719973792346,29.98739416,152.66,152.55,0.34]
[1719973792638,29.98739416,152.66,152.56,16.3472]
[1719973792828,29.98739416,152.66,152.57,0.34]
[1719973793626,36.53799416,152.66,152.57,0.34]
[1719973796542,6.551,152.65,152.57,0.34]
[1719973797624,36.53799416,152.66,152.57,0.34]
[1719973797821,6.83739416,152.66,152.59,15.971]
[1719973798021,23.15,152.7,152.6,0.34]
[1719973798937,6.5493,152.69,152.6,0.34]
[1719973799138,6.5497,152.68,152.6,0.34]
[1719973799546,23.15,152.7,152.6,0.34]
[1719973800226,6.5492,152.69,152.6,0.34]
[1719973800421,29.6988,152.7,152.6,0.34]
[1719973800626,13.38451863,152.72,152.61,23.3081]
[1719973800833,6.5483,152.72,152.62,0.34]
[1719973801233,6.5483,152.72,152.63,16.2906]
[1719973801532,6.5476,152.73,152.64,0.34]
[1719973802123,23.15,152.74,152.64,0.34]
[1719973802124,6.5479,152.72,152.64,0.34]
[1719973802423,6.5476,152.73,152.64,0.34]
[1719973802622,23.15,152.74,152.65,6.3855]
[1719973802827,6.5475,152.73,152.66,0.34]
[1719973803235,29.6971,152.74,152.66,0.34]
[1719973805127,6.5471,152.74,152.66,0.34]
[1719973806135,23.15,152.75,152.66,0.34]
[1719973806136,29.6967,152.75,152.66,0.34]
[1719973806339,6.5467,152.75,152.66,0.34]
[1719973806542,29.6967,152.75,152.66,0.34]
[1719973807139,23.15,152.75,152.66,0.34]
[1719973808554,26.55735008,152.77,152.66,0.34]
[1719973808775,23.15,152.76,152.67,16.389]
[1719973809064,6.5456,152.78,152.68,0.34]
[1719973809356,26.2652,152.79,152.69,6.2094]
[1719973809561,6.5455,152.78,152.7,0.34]
[1719973809743,19.72,152.79,152.7,0.34]
[1719973810057,6.5465,152.76,152.7,0.34]
[1719973810251,6.5465,152.76,152.69,6.2094]
[1719973810549,19.72,152.79,152.69,6.2094]
[1719973810738,19.72,152.79,152.7,0.34]
[1719973811661,6.5457,152.78,152.7,0.34]
[1719973811957,11.55,152.73,152.7,0.34]
[1719973812336,11.55,152.72,152.7,0.34]
[1719973812535,6.5456,152.78,152.7,0.34]
[1719973812851,11.55,152.73,152.7,0.34]
[1719973813057,26.265,152.79,152.7,0.34]
[1719973813231,11.55,152.73,152.7,0.34]
[1719973813934,6.5454,152.78,152.7,0.34]
[1719973814149,11.55,152.73,152.7,0.34]
[1719973814947,53.03840175,152.8,152.67,16.389]
[1719973814948,19.72,152.77,152.67,16.389]
[1719973815260,11.55,152.7,152.67,16.389]
[1719973815831,19.72,152.77,152.67,16.389]
[1719973816031,12.3773919,152.71,152.67,16.389]
[1719973816241,0.8273919,152.71,152.67,16.389]
[1719973816657,0.8273919,152.71,152.67,27.939]
[1719973816857,0.8273919,152.71,152.68,0.34]
[1719973817158,12.3773919,152.71,152.68,0.34]
[1719973817357,12.3773919,152.71,152.67,16.389]
[1719973817542,11.55,152.7,152.67,16.389]
[1719973817742,0.8273919,152.71,152.67,16.389]
[1719973817963,12.3773919,152.71,152.67,16.389]
[1719973818962,12.3773919,152.71,152.68,0.34]
[1719973819256,0.8273919,152.71,152.68,0.34]
[1719973819468,12.3773919,152.71,152.68,0.34]
[1719973819842,0.8273919,152.71,152.68,11.89]
[1719973820458,0.8273919,152.71,152.68,0.34]
[1719973821563,0.8273919,152.71,152.68,11.89]
[1719973822561,0.8273919,152.71,152.68,0.34]
[1719973823248,0.8273919,152.71,152.68,11.89]
[1719973824558,0.8273919,152.71,152.7,11.55]
[1719973824765,0.8273919,152.71,152.7,0.34]
[1719973826550,0.8273919,152.71,152.69,0.34]
[1719973827146,0.8273919,152.71,152.68,0.34]
[1719973827558,0.8273919,152.71,152.68,0.17]
[1719973827761,0.8273919,152.71,152.68,11.72]
[1719973827971,0.8273919,152.71,152.69,11.55]
[1719973828261,0.8273919,152.71,152.7,0.17]
[1719973828950,0.8273919,152.71,152.69,11.89]
[1719973829155,0.8273919,152.71,152.69,0.34]
[1719973830468,0.8273919,152.71,152.67,16.389]
[1719973830659,0.8273919,152.71,152.67,27.939]
[1719973830871,12.3773919,152.71,152.67,16.389]
[1719973831361,0.8273919,152.71,152.67,27.939]
[1719973831751,0.8273919,152.71,152.68,0.17]
[1719973831950,0.8273919,152.71,152.68,0.34]
[1719973832552,11.55,152.7,152.65,6.359]
[1719973832870,11.55,152.7,152.65,17.909]
[1719973833666,0.8273919,152.71,152.66,11.55]
[1719973833865,12.3773919,152.71,152.67,0.17]
[1719973834252,0.8273919,152.71,152.67,0.17]
[1719973834574,12.3773919,152.71,152.67,0.17]
[1719973834957,0.8273919,152.71,152.67,0.17]
[1719973835155,12.3773919,152.71,152.67,0.17]
[1719973835359,12.3773919,152.71,152.66,11.89]
[1719973837171,0.8273919,152.71,152.66,11.89]
[1719973837354,12.3773919,152.71,152.66,11.89]
[1719973837548,12.3773919,152.71,152.66,0.34]
[1719973837753,0.8273919,152.71,152.66,11.89]
[1719973837951,12.3773919,152.71,152.66,0.34]
[1719973838171,11.55,152.69,152.66,0.34]
[1719973838374,11.55,152.7,152.67,0.17]
[1719973838678,11.55,152.7,152.65,11.89]
[1719973840078,0.8273919,152.71,152.67,11.55]
[1719973840277,12.3773919,152.71,152.68,0.34]
[1719973840979,12.3773919,152.71,152.67,0.34]
[1719973843478,0.8273919,152.71,152.67,0.34]
[1719973843685,12.3773919,152.71,152.67,0.34]
[1719973844465,0.8273919,152.71,152.67,0.34]
[1719973844888,0.8273919,152.71,152.68,11.55]
[1719973845189,0.8273919,152.71,152.7,11.55]
[1719973845479,0.8273919,152.71,152.7,11.89]
[1719973848370,0.8273919,152.71,152.7,31.89]
[1719973849568,11.55,152.78,152.7,31.89]
[1719973849874,11.55,152.78,152.73,11.55]
[1719973850075,15.4826,152.79,152.74,0.34]
[1719973850275,11.55,152.78,152.74,0.34]
[1719973850992,15.4826,152.79,152.74,0.34]
[1719973851196,11.55,152.78,152.74,0.34]
[1719973851689,27.0326,152.79,152.74,11.89]
[1719973853295,11.55,152.78,152.74,0.34]
[1719973853473,11.55,152.78,152.74,11.89]
[1719973853791,11.55,152.78,152.74,0.34]
[1719973854708,11.55,152.78,152.74,11.89]
[1719973855812,6.5406,152.82,152.74,11.89]
[1719973856017,11.55,152.78,152.74,11.89]
[1719973857086,11.55,152.78,152.74,0.34]
[1719973857286,11.55,152.78,152.74,11.89]
[1719973858098,11.55,152.78,152.75,0.93642288]
[1719973858299,11.55,152.79,152.76,0.34]
[1719973859483,11.55,152.79,152.75,0.34]
[1719973859687,11.55,152.78,152.75,0.34]
[1719973859990,11.55,152.78,152.73,11.55]
[1719973859991,11.55,152.78,152.76,0.17]
[1719973860205,11.55,152.78,152.74,0.34]
[1719973861994,11.55,152.78,152.73,11.89]
[1719973862603,11.55,152.77,152.73,0.34]
[1719973862810,11.55,152.78,152.73,11.89]
[1719973863191,26.2606,152.82,152.73,0.34]
[1719973863391,11.55,152.76,152.73,0.34]
[1719973863601,46.2,152.8,152.72,0.34]
[1719973864415,11.55,152.77,152.72,0.34]
[1719973864721,11.55,152.76,152.72,0.34]
[1719973865893,46.2,152.8,152.72,0.34]
[1719973866594,15.0325,152.78,152.67,6.3698]
[1719973866798,11.55,152.71,152.67,6.3698]
[1719973867614,11.55,152.71,152.65,16.0124]
[1719973867821,11.55,152.7,152.65,16.0124]
[1719973868021,11.55,152.7,152.65,27.5624]
[1719973868203,11.55,152.71,152.66,11.55]
[1719973868594,6.0504,152.77,152.65,21.34507933]
[1719973868797,11.55,152.74,152.69,11.55]
[1719973869100,11.55,152.73,152.68,11.55]
[1719973869813,11.55,152.73,152.69,0.17]
[1719973870016,11.55,152.73,152.69,0.34]
[1719973870397,6.0504,152.77,152.69,0.34]
[1719973870600,15.0325,152.78,152.69,11.89]
[1719973870818,21.5778,152.78,152.69,11.89]
[1719973871120,11.55,152.74,152.69,11.89]
[1719973873408,6.8405899,152.8,152.71,11.55]
[1719973873611,11.55,152.76,152.72,0.34]
[1719973873812,11.55,152.77,152.72,11.89]
[1719973874397,6.2764,152.81,152.74,11.55]
[1719973874615,21.97263018,152.82,152.75,0.34]
[1719973874917,11.55,152.79,152.75,0.34]
[1719973875418,21.6817,152.82,152.75,0.34]
[1719973875624,11.55,152.79,152.75,0.34]
[1719973876612,11.55,152.78,152.75,0.34]
[1719973876825,11.55,152.78,152.76,0.34]
[1719973876998,11.55,152.78,152.74,0.34]
[1719973877402,11.55,152.79,152.74,11.89]
[1719973878496,15.1381,152.82,152.74,11.89]
[1719973878702,11.55,152.79,152.74,11.89]
[1719973882807,21.6817,152.82,152.74,11.89]
[1719973883009,11.55,152.79,152.74,11.89]
[1719973883807,21.6817,152.82,152.74,11.89]
[1719973884118,6.5433,152.83,152.74,11.89]
[1719973884322,6.83395702,152.84,152.79,11.55]
[1719973884501,11.55,152.84,152.8,11.89]
[1719973884704,0.8273919,152.86,152.8,11.89]
[1719973885109,11.55,152.85,152.8,11.89]
[1719973885311,11.05,152.84,152.8,0.34]
[1719973886630,7.3692919,152.86,152.8,0.34]
[1719973887238,0.8273919,152.86,152.8,0.34]
[1719973887766,11.55,152.82,152.8,0.34]
[1719973887914,11.55,152.82,152.79,0.34]
[1719973888907,11.55,152.81,152.77,16.3641]
[1719973889113,11.55,152.8,152.75,17.6498]
[1719973890044,11.55,152.81,152.76,11.55]
[1719973890244,11.55,152.81,152.77,0.34]
[1719973890411,11.55,152.81,152.76,11.89]
[1719973890737,11.55,152.8,152.76,11.89]
[1719973891524,11.55,152.79,152.75,6.0998]
[1719973892133,6.5429,152.84,152.75,6.0998]
[1719973892448,11.55,152.79,152.75,6.0998]
[1719973892824,11.55,152.79,152.76,0.34]
[1719973893028,6.5429,152.84,152.76,0.34]
[1719973893240,11.55,152.8,152.76,0.34]
[1719973893440,7.3695919,152.86,152.76,11.89]
[1719973893441,11.55,152.81,152.76,11.89]
[1719973893658,11.55,152.8,152.76,11.89]
[1719973894147,11.55,152.81,152.76,11.89]
[1719973894845,11.55,152.8,152.76,0.34]
[1719973896848,13.38642892,152.84,152.76,0.34]
[1719973897027,11.55,152.8,152.76,0.34]
[1719973898833,13.38642892,152.84,152.76,0.34]
[1719973898834,6.84352892,152.84,152.76,11.89]
[1719973899042,11.55,152.82,152.77,11.55]
[1719973899349,11.55,152.82,152.78,0.34]
[1719973900050,6.84352892,152.84,152.78,0.34]
[1719973900253,11.55,152.82,152.78,0.34]
[1719973900742,6.84352892,152.84,152.78,0.34]
[1719973900946,11.55,152.82,152.78,0.34]
[1719973904841,6.84352892,152.84,152.78,0.34]
[1719973905153,11.55,152.81,152.78,0.34]
[1719973905452,11.55,152.82,152.78,0.34]
[1719973907658,6.84352892,152.84,152.78,16.7214]
[1719973907839,6.84352892,152.84,152.79,11.55]
[1719973908040,6.84352892,152.84,152.8,0.34]
[1719973908339,6.84352892,152.84,152.81,0.34]
[1719973909340,6.84352892,152.84,152.81,6.7802]
[1719973909557,0.8273919,152.86,152.83,11.55]
[1719973909766,0.8273919,152.86,152.84,11.89]
[1719973911462,0.8273919,152.86,152.84,0.34]
[1719973913639,0.8273919,152.86,152.85,11.55]
[1719973913955,0.8273919,152.86,152.85,0.34]
[1719973914456,0.8273919,152.86,152.85,11.89]
[1719973914670,0.8273919,152.86,152.85,0.34]
[1719973915746,0.8273919,152.86,152.85,11.89]
[1719973916252,22.0824,152.93,152.85,11.89]
[1719973916253,11.55,152.94,152.86,6.4084]
[1719973916446,6.5368,152.98,152.89,11.55]
[1719973916649,11.55,152.94,152.9,0.34]
[1719973916963,11.55,152.95,152.9,11.89]
[1719973917261,29.04460715,152.99,152.9,11.89]
[1719973917262,6.5369,152.98,152.9,11.89]
[1719973917653,11.55,152.96,152.91,11.55]
[1719973917961,11.55,152.96,152.92,0.34]
[1719973918165,22.50820715,152.99,152.92,0.34]
[1719973918376,11.55,152.96,152.92,0.34]
[1719973918549,11.55,152.95,152.92,0.34]
[1719973918869,6.5369,152.98,152.93,0.34]
[1719973919062,11.55,152.95,152.91,0.34]
[1719973919246,6.5369,152.98,152.91,0.34]
[1719973919447,11.55,152.95,152.91,0.34]
[1719973919944,15.6703,152.99,152.91,11.89]
[1719973920150,11.55,152.96,152.91,0.34]
[1719973920469,11.55,152.95,152.91,0.34]
[1719973920666,6.5384,152.95,152.86,6.4084]
[1719973920844,11.55,152.9,152.86,6.4084]
[1719973921046,11.55,152.91,152.86,17.9584]
[1719973921855,11.55,152.87,152.82,6.3434]
[1719973922065,11.55,152.86,152.81,11.55]
[1719973922366,35.3841,152.93,152.81,11.55]
[1719973922547,11.55,152.86,152.81,11.55]
[1719973923479,11.55,152.86,152.82,11.55]
[1719973923767,11.55,152.87,152.82,11.55]
[1719973923991,11.55,152.86,152.81,11.55]
[1719973924272,11.55,152.86,152.82,0.17]
[1719973924464,35.3841,152.93,152.82,11.89]
[1719973924666,26.5394,152.92,152.83,11.55]
[1719973924982,26.5394,152.92,152.84,0.34]
[1719973925150,11.55,152.88,152.84,0.34]
[1719973925563,11.55,152.87,152.84,0.34]
[1719973925753,11.55,152.87,152.85,0.17]
[1719973925960,11.55,152.87,152.83,0.34]
[1719973926568,11.55,152.87,152.83,11.89]
[1719973927578,11.55,152.88,152.83,11.89]
[1719973927752,11.55,152.87,152.83,0.34]
[1719973927950,6.5398,152.91,152.83,0.34]
[1719973928152,11.55,152.88,152.83,11.89]
[1719973929956,11.55,152.89,152.84,11.55]
[1719973930261,11.55,152.89,152.85,0.34]
[1719973931182,11.55,152.88,152.85,0.34]
[1719973931359,11.55,152.88,152.86,0.17]
[1719973931560,11.55,152.88,152.84,0.34]
[1719973932078,20.0,152.92,152.84,11.89]
[1719973932283,11.55,152.91,152.86,11.55]
[1719973932581,22.53285392,152.93,152.87,11.89]
[1719973932796,11.55,152.92,152.88,0.34]
[1719973935771,11.55,152.92,152.88,11.89]
[1719973936262,6.5385,152.94,152.88,11.89]
[1719973936465,11.55,152.92,152.88,11.89]
[1719973937385,6.83703434,152.96,152.91,11.55]
[1719973937579,16.5348,153.01,152.95,11.55]
[1719973937796,11.55,152.97,152.94,0.34]
[1719973938089,16.5348,153.01,152.92,0.17]
[1719973938090,11.55,152.96,152.92,0.17]
[1719973938661,19.69,153.0,152.91,0.17]
[1719973938863,11.55,152.94,152.9,0.17]
[1719973939160,11.55,152.94,152.9,0.34]
[1719973939388,11.55,152.95,152.9,11.89]
[1719973939874,11.55,152.94,152.9,0.34]
[1719973941656,11.55,152.95,152.9,11.89]
[1719973942489,11.55,152.91,152.84,23.1154]
[1719973942695,6.5388,152.94,152.84,23.1154]
[1719973942871,11.55,152.92,152.87,11.55]
[1719973943190,21.735,152.95,152.87,11.55]
[1719973943191,6.5385,152.94,152.87,11.55]
[1719973943486,11.55,152.92,152.84,23.1154]
[1719973943660,11.55,152.91,152.86,11.55]
[1719973943860,15.1969,152.95,152.88,11.55]
[1719973944060,15.1969,152.95,152.87,11.55]
[1719973944385,11.55,152.91,152.86,11.55]
[1719973944769,6.5385,152.94,152.87,0.34]
[1719973945172,11.55,152.91,152.87,0.34]
[1719973945599,11.55,152.92,152.87,0.34]
[1719973946401,11.55,152.91,152.87,0.34]
[1719973946584,6.5391,152.93,152.87,0.34]
[1719973946768,34.8869,152.95,152.87,0.34]
[1719973946769,11.55,152.91,152.87,0.34]
[1719973947182,6.5385,152.94,152.87,0.34]
[1719973947492,11.55,152.91,152.87,0.34]
[1719973948399,6.5385,152.94,152.87,0.34]
[1719973948600,11.55,152.91,152.87,0.34]
[1719973949693,11.55,152.9,152.87,0.34]
[1719973949996,11.55,152.9,152.88,0.17]
[1719973950195,11.55,152.9,152.86,0.34]
[1719973950878,41.72047355,152.95,152.86,0.34]
[1719973950879,6.5394,152.92,152.86,0.34]
[1719973951073,6.5403,152.9,152.84,16.4556]
[1719973951380,19.69,152.94,152.84,16.4556]
[1719973951580,11.55,152.88,152.84,16.4556]
[1719973952391,11.55,152.87,152.8,11.28816404]
[1719973952999,11.55,152.86,152.81,11.55]
[1719973953294,6.5398,152.91,152.81,11.55]
[1719973953505,11.55,152.87,152.82,11.55]
[1719973954276,22.03047355,152.95,152.83,0.34]
[1719973954591,11.55,152.92,152.88,11.55]
[1719973954795,11.55,152.92,152.89,0.34]
[1719973955171,11.55,152.92,152.89,0.17]
[1719973955372,11.55,152.92,152.88,0.34]
[1719973955589,11.55,152.91,152.86,18.1697]
[1719973955890,11.55,152.9,152.87,0.34]
[1719973956098,6.5394,152.92,152.84,16.4726]
[1719973956272,11.55,152.88,152.85,0.34]
[1719973957996,19.69,152.94,152.85,0.34]
[1719973957997,6.539,152.93,152.85,0.34]
[1719973958299,6.5386,152.94,152.86,11.55]
[1719973958483,11.55,152.9,152.87,0.34]
[1719973958803,11.55,152.9,152.85,0.34]
[1719973958999,11.55,152.9,152.85,11.89]
[1719973959188,20.0,152.93,152.86,11.55]
[1719973959398,41.425,152.95,152.87,11.89]
[1719973959581,41.425,152.95,152.87,11.72]
[1719973959582,11.55,152.91,152.87,11.72]
[1719973960696,19.69,152.97,152.88,11.72]
[1719973960874,19.69,152.97,152.87,0.17]
[1719973960875,11.55,152.94,152.89,11.72]
[1719973961685,11.55,152.93,152.89,0.17]
[1719973962001,6.538,152.95,152.89,0.17]
[1719973962192,11.55,152.93,152.89,0.17]
[1719973963083,11.55,152.91,152.88,0.17]
[1719973963283,11.55,152.91,152.87,0.34]
[1719973964498,6.5386,152.94,152.87,11.89]